fUST/lending_fUST_20250606
["ID","MTS","AMOUNT","RATE_DAILY","PERIOD"]
[364709622,1749214253845,-911.46,0.00022465,2]
[364709623,1749214253854,-966.81,0.00022465,2]
[364709624,1749214253865,-440.0,0.00022465,2]
[364709625,1749214253874,-310.0,0.00022465,2]
[364709626,1749214253884,-4387.44,0.00022465,2]
[364709627,1749214253893,-440.0,0.00022465,2]
[364709628,1749214253903,-440.0,0.00022465,2]
[364709629,1749214253912,-440.0,0.00022465,2]
[364709630,1749214253922,-440.0,0.00022465,2]
[364709631,1749214253932,-2257.36867115,0.00022506,2]
[364709632,1749214253942,-503.01712647,0.0002254,2]
[364709633,1749214253951,-818.1841407,0.0002255,2]
[364709634,1749214253961,-1676.48981906,0.00022555,7]
[364709635,1749214253971,-2340.89131198,0.00022561,2]
[364709636,1749214253980,-2383.27191805,0.00022613,2]
[364709637,1749214253994,-151.0,0.00022614,2]
[364709638,1749214254004,-5000.0,0.00022614,2]
[364709639,1749214254014,-2427.50429052,0.00022616,2]
[364709640,1749214254024,-177.37881144,0.00022642,2]
[364709641,1749214254034,-2517.32194927,0.00022671,2]
[364709642,1749214254044,-1676.48981906,0.00022693,7]
[364709643,1749214254054,-151.0,0.000227,7]
[364709644,1749214254064,-435.52355721,0.00022718,2]
[364709645,1749214254074,-1500.0,0.00022718,2]
[364709646,1749214254084,-2610.4628614,0.00022726,2]
[364709647,1749214254094,-443.77,0.00022739,2]
[364709648,1749214254104,-440.0,0.00022739,2]
[364709649,1749214254114,-440.0,0.00022739,2]
[364709650,1749214254124,-440.0,0.00022739,2]
[364709651,1749214254135,-440.0,0.00022739,2]
[364709652,1749214254144,-457.32,0.00022739,2]
[364709653,1749214254154,-440.0,0.00022739,2]
[364709654,1749214254163,-1619.82,0.00022739,2]
[364709655,1749214254173,-1008.18,0.00022739,2]
[364709656,1749214254183,-2671.63,0.00022739,2]
[364709657,1749214254192,-1751.18,0.00022739,2]
[364709658,1749214254202,-583.76,0.00022739,2]
[364709659,1749214254211,-700.1,0.00022739,2]
[364709660,1749214254220,-605.44,0.00022739,2]
[364709661,1749214254230,-2910.28,0.00022739,2]
[364709662,1749214254239,-2253.61,0.00022739,2]
[364709663,1749214254249,-440.0,0.00022739,2]
[364709664,1749214254258,-394.53,0.00022739,2]
[364709665,1749214254267,-310.0,0.00022739,2]
[364709666,1749214254277,-561.53,0.00022739,2]
[364709667,1749214254286,-988.31,0.00022739,2]
[364709668,1749214254295,-1039.65,0.00022739,2]
[364709669,1749214254305,-5859.32,0.00022739,2]
[364709670,1749214254314,-657.96,0.00022739,2]
[364709671,1749214254323,-440.0,0.00022739,2]
[364709672,1749214254334,-863.5,0.00022739,2]
[364709673,1749214254343,-440.0,0.00022739,2]
[364709674,1749214254352,-1062.11,0.00022739,2]
[364709675,1749214254363,-911.46,0.00022739,2]
[364709676,1749214254372,-966.81,0.00022739,2]
[364709677,1749214254381,-440.0,0.00022739,2]
[364709678,1749214254391,-4387.44,0.00022739,2]
[364709679,1749214254401,-440.0,0.00022739,2]
[364709680,1749214254411,-440.0,0.00022739,2]
[364709681,1749214254420,-440.0,0.00022739,2]
[364709682,1749214254430,-440.0,0.00022739,2]
[364709683,1749214254439,-151.0,0.00022762,2]
[364709684,1749214254449,-462.0,0.00022762,2]
[364709685,1749214254459,-462.0,0.00022762,2]
[364709686,1749214254468,-500.0,0.00022762,2]
[364709687,1749214254478,-500.0,0.00022762,2]
[364709688,1749214254487,-500.0,0.00022762,2]
[364709689,1749214254497,-500.0,0.00022762,2]
[364709690,1749214254507,-587.0,0.00022768,2]
[364709691,1749214254516,-900.0,0.00022775,2]
[364709692,1749214254526,-2126.80154098,0.00022781,2]
[364709693,1749214254536,-462.0,0.00022789,2]
[364709694,1749214254545,-462.0,0.00022789,2]
[364709695,1749214254555,-500.0,0.00022789,2]
[364709696,1749214254564,-500.0,0.00022789,2]
[364709697,1749214254574,-21231.08,0.000228,2]
[364709698,1749214254584,-462.0,0.00022817,2]
[364709699,1749214254593,-462.0,0.00022817,2]
[364709700,1749214254602,-500.0,0.00022817,2]
[364709701,1749214254612,-378.64635791,0.00022824,72]
[364709702,1749214254622,-1676.48981906,0.00022831,8]
[364709703,1749214254631,-462.0,0.00022844,2]
[364709704,1749214254641,-462.0,0.00022844,2]
[364709705,1749214254651,-151.0,0.00022845,2]
[364709706,1749214254660,-500.0,0.00022845,2]
[364709707,1749214254669,-500.0,0.00022845,2]
[364709708,1749214254679,-500.0,0.00022845,2]
[364709709,1749214254688,-500.0,0.00022845,2]
[364709710,1749214254698,-151.0,0.00022845,2]
[364709711,1749214254708,-151.0,0.00022845,2]
[364709712,1749214254717,-311.4322408,0.00022849,2]
[364709713,1749214254727,-462.0,0.00022872,2]
[364709714,1749214254737,-462.0,0.00022872,2]
[364709715,1749214254746,-325.31816384,0.00022872,2]
[364709716,1749214254756,-151.0,0.00022872,2]
[364709717,1749214254765,-500.0,0.00022872,2]
[364709718,1749214254774,-500.0,0.00022872,2]
[364709719,1749214254784,-500.0,0.00022872,2]
[364709720,1749214254793,-500.0,0.00022872,2]
[364709721,1749214254803,-462.0,0.00022899,2]
[364709722,1749214254813,-462.0,0.00022899,2]
[364709723,1749214254823,-151.0,0.000229,2]
[364709724,1749214254834,-500.0,0.000229,2]
[364709725,1749214254844,-236.25801661,0.000229,2]
[364709726,1749214254854,-500.0,0.000229,2]
[364709727,1749214254864,-500.0,0.000229,2]
[364709728,1749214254873,-462.0,0.00022926,2]
[364709729,1749214254883,-462.0,0.00022926,2]
[364709730,1749214254893,-151.0,0.00022927,2]
[364709731,1749214254905,-500.0,0.00022927,2]
[364709732,1749214254921,-601.12706256,0.00022927,2]
[364709733,1749214254931,-584.93341608,0.00022927,2]
[364709734,1749214254940,-462.0,0.00022954,2]
[364709735,1749214254950,-462.0,0.00022954,2]
[364709736,1749214254961,-282.26293995,0.00022955,2]
[364709737,1749214254971,-184.41159364,0.00022955,2]
[364709738,1749214254981,-1676.48981906,0.00022969,8]
[364709739,1749214254995,-462.0,0.00022981,2]
[364709740,1749214255005,-462.0,0.00022981,2]
[364709741,1749214255015,-1090.0,0.00022989,2]
[364709742,1749214255026,-1484.81,0.00023,7]
[364709743,1749214255036,-837.47,0.00023,7]
[364709744,1749214255046,-462.0,0.00023009,2]
[364709745,1749214255056,-462.0,0.00023009,2]
[364709746,1749214255066,-443.77,0.00023013,2]
[364709747,1749214255077,-440.0,0.00023013,2]
[364709748,1749214255087,-440.0,0.00023013,2]
[364709749,1749214255097,-440.0,0.00023013,2]
[364709750,1749214255106,-440.0,0.00023013,2]
[364709751,1749214255118,-457.32,0.00023013,2]
[364709752,1749214255134,-440.0,0.00023013,2]
[364709753,1749214255144,-1619.82,0.00023013,2]
[364709754,1749214255154,-1008.18,0.00023013,2]
[364709755,1749214255165,-2671.63,0.00023013,2]
[364709756,1749214255175,-1751.18,0.00023013,2]
[364709757,1749214255185,-583.76,0.00023013,2]
[364709758,1749214255194,-700.1,0.00023013,2]
[364709759,1749214255204,-605.44,0.00023013,2]
[364709760,1749214255214,-2910.28,0.00023013,2]
[364709761,1749214255223,-2253.61,0.00023013,2]
[364709762,1749214255232,-440.0,0.00023013,2]
[364709763,1749214255242,-561.53,0.00023013,2]
[364709764,1749214255251,-988.31,0.00023013,2]
[364709765,1749214255261,-1039.65,0.00023013,2]
[364709766,1749214255271,-5859.32,0.00023013,2]
[364709767,1749214255281,-657.96,0.00023013,2]
[364709768,1749214255290,-440.0,0.00023013,2]
[364709769,1749214255300,-863.5,0.00023013,2]
[364709770,1749214255310,-440.0,0.00023013,2]
[364709771,1749214255320,-1062.11,0.00023013,2]
[364709772,1749214255330,-854.84948623,0.00023013,2]
[364709773,1749214256086,-150.0,0.00018029,2]
[364709774,1749214256096,-500.0,0.0001917,2]
[364709775,1749214256106,-500.0,0.0001917,2]
[364709776,1749214256116,-500.0,0.0001917,2]
[364709777,1749214256125,-500.0,0.0001917,2]
[364709778,1749214256135,-500.0,0.0001917,2]
[364709779,1749214256144,-500.0,0.0001917,2]
[364709780,1749214256154,-500.0,0.0001917,2]
[364709781,1749214256163,-335.19703477,0.0001917,2]
[364709782,1749214256172,-500.0,0.0001917,2]
[364709783,1749214256182,-500.0,0.0001917,2]
[364709784,1749214256191,-500.0,0.0001917,2]
[364709785,1749214256200,-500.0,0.0001917,2]
[364709786,1749214256210,-500.0,0.0001917,2]
[364709787,1749214256220,-500.0,0.0001917,2]
[364709788,1749214256229,-500.0,0.0001917,2]
[364709789,1749214256239,-500.0,0.0001917,2]
[364709790,1749214256250,-500.0,0.0001917,2]
[364709791,1749214256262,-500.0,0.0001917,2]
[364709792,1749214256275,-500.0,0.0001917,2]
[364709793,1749214256285,-500.0,0.0001917,2]
[364709794,1749214256295,-500.0,0.0001917,2]
[364709795,1749214256304,-500.0,0.0001917,2]
[364709796,1749214256314,-500.0,0.0001917,2]
[364709797,1749214256323,-500.0,0.0001917,2]
[364709798,1749214256333,-500.0,0.0001917,2]
[364709799,1749214256343,-500.0,0.0001917,2]
[364709800,1749214256353,-500.0,0.0001917,2]
[364709801,1749214256362,-500.0,0.0001917,2]
[364709802,1749214256371,-500.0,0.0001917,2]
[364709803,1749214256381,-500.0,0.0001917,2]
[364709804,1749214256390,-394.47152268,0.00019178,2]
[364709805,1749214256400,-440.0,0.00019178,2]
[364709806,1749214256409,-122337.82,0.00022,7]
[364709807,1749214256419,-1842.31,0.00022465,2]
[364709808,1749214256428,-1842.31,0.00022739,2]
[364709809,1749214256438,-122337.82,0.00023,7]
[364709810,1749214256448,-56.61051377,0.00023013,2]
[364709811,1749214256459,-966.81,0.00023013,2]
[364709812,1749214256468,-440.0,0.00023013,2]
[364709813,1749214256478,-4387.44,0.00023013,2]
[364709814,1749214256488,-440.0,0.00023013,2]
[364709815,1749214256499,-306.45391535,0.00023013,2]
[364709816,1749214256508,-440.0,0.00023013,2]
[364709817,1749214256517,-440.0,0.00023013,2]
[364709818,1749214256527,-1842.31,0.00023013,2]
[364709819,1749214256536,-462.0,0.00023036,2]
[364709820,1749214256546,-462.0,0.00023036,2]
[364709821,1749214256555,-112398.92506955,0.00023054,2]
[364709822,1749214256565,-462.0,0.00023063,2]
[364709823,1749214256574,-462.0,0.00023063,2]
[364709824,1749214256585,-1676.48981906,0.00023107,8]
[364709825,1749214256595,-277.60077407,0.00023162,2]
[364709826,1749214256606,-5000.0,0.00023162,2]
[364709827,1749214256616,-151.0,0.000232,7]
[364709828,1749214256626,-1676.48981906,0.00023245,8]
[364709829,1749214256636,-505.52707264,0.00023266,2]
[364709830,1749214256646,-443.77,0.00023287,2]
[364709831,1749214256655,-440.0,0.00023287,2]
[364709832,1749214256665,-401.84396955,0.00023287,2]
[364709833,1749214256675,-440.0,0.00023287,2]
[364709834,1749214256684,-440.0,0.00023287,2]
[364709835,1749214256694,-457.32,0.00023287,2]
[364709836,1749214256703,-440.0,0.00023287,2]
[364709837,1749214256712,-1619.82,0.00023287,2]
[364709838,1749214256722,-1008.18,0.00023287,2]
[364709839,1749214256732,-2671.63,0.00023287,2]
[364709840,1749214256741,-1751.18,0.00023287,2]
[364709841,1749214256751,-583.76,0.00023287,2]
[364709842,1749214256760,-700.1,0.00023287,2]
[364709843,1749214256769,-605.44,0.00023287,2]
[364709844,1749214256779,-2910.28,0.00023287,2]
[364709845,1749214256789,-2253.61,0.00023287,2]
[364709846,1749214256799,-310.0,0.00023287,2]
[364709847,1749214256808,-561.53,0.00023287,2]
[364709848,1749214256818,-988.31,0.00023287,2]
[364709849,1749214256829,-1039.65,0.00023287,2]
[364709850,1749214256838,-5859.32,0.00023287,2]
[364709851,1749214256847,-657.96,0.00023287,2]
[364709852,1749214256857,-181.34368962,0.00023287,2]
[364709853,1749214256866,-863.5,0.00023287,2]
[364709854,1749214256877,-440.0,0.00023287,2]
[364709855,1749214256886,-1062.11,0.00023287,2]
[364709856,1749214256896,-911.46,0.00023287,2]
[364709857,1749214256906,-966.81,0.00023287,2]
[364709858,1749214256916,-181.07110861,0.00023287,2]
[364709859,1749214256926,-4387.44,0.00023287,2]
[364709860,1749214256936,-440.0,0.00023287,2]
[364709861,1749214256946,-440.0,0.00023287,2]
[364709862,1749214256956,-440.0,0.00023287,2]
[364709863,1749214256965,-1842.31,0.00023287,2]
[364709864,1749214256975,-989.693131,0.00023324,3]
[364709865,1749214256985,-500.0,0.00023365,2]
[364709866,1749214256999,-200.35640852,0.00023365,2]
[364709867,1749214257008,-151.0,0.00023365,2]
[364709868,1749214257019,-500.0,0.00023365,2]
[364709869,1749214257029,-428.0,0.00023365,2]
[364709870,1749214257039,-500.0,0.00023365,2]
[364709871,1749214257049,-163.96688806,0.00023365,2]
[364709872,1749214257058,-500.0,0.00023365,2]
[364709873,1749214257068,-1358.0,0.00023365,2]
[364709874,1749214257078,-500.0,0.00023365,2]
[364709875,1749214257087,-500.0,0.00023365,2]
[364709876,1749214257097,-500.0,0.00023365,2]
[364709877,1749214257107,-151.0,0.00023365,2]
[364709878,1749214257116,-151.0,0.00023365,2]
[364709879,1749214257127,-500.0,0.00023365,2]
[364709880,1749214257137,-12500.0,0.00023369,3]
[364709881,1749214257146,-2062.56683271,0.00023377,3]
[364709882,1749214257156,-12500.0,0.00023378,3]
[364709883,1749214257166,-1676.48981906,0.00023383,9]
[364709884,1749214257176,-500.0,0.00023392,2]
[364709885,1749214257186,-193.34465452,0.00023392,2]
[364709886,1749214257197,-500.0,0.00023392,2]
[364709887,1749214257207,-428.0,0.00023392,2]
[364709888,1749214257217,-500.0,0.00023392,2]
[364709889,1749214257227,-500.0,0.00023392,2]
[364709890,1749214257238,-1358.0,0.00023392,2]
[364709891,1749214257249,-500.0,0.00023392,2]
[364709892,1749214257259,-500.0,0.00023392,2]
[364709893,1749214257269,-500.0,0.00023392,2]
[364709894,1749214257279,-151.0,0.00023392,2]
[364709895,1749214257290,-151.0,0.00023392,2]
[364709896,1749214257301,-500.0,0.00023392,2]
[364709897,1749214257311,-153.0,0.00023397,2]
[364709898,1749214257321,-153.0,0.00023397,2]
[364709899,1749214257332,-153.0,0.00023397,2]
[364709900,1749214257342,-423.83542519,0.000234,3]
[364709901,1749214257352,-11849.89752062,0.000234,3]
[364709902,1749214257362,-160.0,0.000234,3]
[364709903,1749214257372,-229.52673067,0.000234,3]
[364709904,1749214257382,-160.0,0.000234,3]
[364709905,1749214257392,-160.0,0.000234,3]
[364709906,1749214257402,-160.0,0.000234,3]
[364709907,1749214257411,-315.04936747,0.000234,3]
[364709908,1749214257421,-834.50537533,0.000234,3]
[364709909,1749214257431,-565.41779745,0.0002342,2]
[364709910,1749214257441,-500.0,0.0002342,2]
[364709911,1749214257451,-428.0,0.0002342,2]
[364709912,1749214257461,-500.0,0.0002342,2]
[364709913,1749214257470,-347.93882854,0.0002342,2]
[364709914,1749214257480,-1358.0,0.0002342,2]
[364709915,1749214257489,-500.0,0.0002342,2]
[364709916,1749214257499,-500.0,0.0002342,2]
[364709917,1749214257509,-500.0,0.0002342,2]
[364709918,1749214257519,-203.16869086,0.0002342,2]
[364709919,1749214257529,-216.58091068,0.0002342,2]
[364709920,1749214257539,-500.0,0.0002342,2]
[364709921,1749214257550,-215.0738,0.00023435,2]
[364709922,1749214257559,-382.49554745,0.0002344,2]
[364709923,1749214257569,-600.0,0.00023442,2]
[364709924,1749214257579,-500.0,0.00023447,2]
[364709925,1749214257589,-428.0,0.00023447,2]
[364709926,1749214257598,-500.0,0.00023447,2]
[364709927,1749214257608,-1358.0,0.00023447,2]
[364709928,1749214257618,-500.0,0.00023447,2]
[364709929,1749214257628,-500.0,0.00023447,2]
[364709930,1749214257637,-500.0,0.00023447,2]
[364709931,1749214257647,-500.0,0.00023447,2]
[364709932,1749214257657,-500.0,0.00023475,2]
[364709933,1749214257667,-428.0,0.00023475,2]
[364709934,1749214257677,-500.0,0.00023475,2]
[364709935,1749214257686,-1358.0,0.00023475,2]
[364709936,1749214257696,-500.0,0.00023475,2]
[364709937,1749214257705,-500.0,0.00023475,2]
[364709938,1749214257715,-500.0,0.00023475,2]
[364709939,1749214257725,-500.0,0.00023475,2]
[364709940,1749214257735,-4822.92620664,0.000235,2]
[364709941,1749214257744,-500.0,0.00023502,2]
[364709942,1749214257753,-428.0,0.00023502,2]
[364709943,1749214257763,-500.0,0.00023502,2]
[364709944,1749214257773,-1358.0,0.00023502,2]
[364709945,1749214257783,-624.92840577,0.00023502,2]
[364709946,1749214257792,-500.0,0.00023502,2]
[364709947,1749214257802,-193.00432671,0.00023502,2]
[364709948,1749214257813,-309.17118391,0.00023502,2]
[364709949,1749214257823,-1676.48981906,0.00023521,9]
[364709950,1749214257833,-500.0,0.00023529,2]
[364709951,1749214257843,-428.0,0.00023529,2]
[364709952,1749214257853,-500.0,0.00023529,2]
[364709953,1749214257862,-1358.0,0.00023529,2]
[364709954,1749214257871,-271.97510472,0.00023529,2]
[364709955,1749214257880,-800.0,0.00023535,2]
[364709956,1749214257890,-800.0,0.00023548,2]
[364709957,1749214257899,-500.0,0.00023557,2]
[364709958,1749214257908,-428.0,0.00023557,2]
[364709959,1749214257917,-500.0,0.00023557,2]
[364709960,1749214257927,-1358.0,0.00023557,2]
[364709961,1749214257936,-440.0,0.00023561,2]
[364709962,1749214257945,-440.0,0.00023561,2]
[364709963,1749214257954,-167.91826675,0.00023561,2]
[364709964,1749214257963,-457.32,0.00023561,2]
[364709965,1749214257972,-410.82095,0.00023561,2]
[364709966,1749214257981,-1008.18,0.00023561,2]
[364709967,1749214257993,-1619.82,0.00023561,2]
[364709968,1749214258003,-2671.63,0.00023561,2]
[364709969,1749214258012,-1751.18,0.00023561,2]
[364709970,1749214258022,-583.76,0.00023561,2]
[364709971,1749214258031,-700.1,0.00023561,2]
[364709972,1749214258040,-605.44,0.00023561,2]
[364709973,1749214258049,-2910.28,0.00023561,2]
[364709974,1749214258059,-2253.61,0.00023561,2]
[364709975,1749214258070,-561.53,0.00023561,2]
[364709976,1749214258080,-988.31,0.00023561,2]
[364709977,1749214258090,-1039.65,0.00023561,2]
[364709978,1749214258099,-5859.32,0.00023561,2]
[364709979,1749214258109,-657.96,0.00023561,2]
[364709980,1749214258119,-863.5,0.00023561,2]
[364709981,1749214258128,-440.0,0.00023561,2]
[364709982,1749214258138,-1062.11,0.00023561,2]
[364709983,1749214258149,-911.46,0.00023561,2]
[364709984,1749214258158,-966.81,0.00023561,2]
[364709985,1749214258168,-4387.44,0.00023561,2]
[364709986,1749214258177,-440.0,0.00023561,2]
[364709987,1749214258187,-440.0,0.00023561,2]
[364709988,1749214258197,-440.0,0.00023561,2]
[364709989,1749214258206,-1842.31,0.00023561,2]
[364709990,1749214258215,-5000.0,0.00023577,30]
[364709991,1749214258225,-1853.12,0.00023577,30]
[364709992,1749214258234,-500.0,0.00023584,2]
[364709993,1749214258244,-428.0,0.00023584,2]
[364709994,1749214258254,-474.41531002,0.00023584,2]
[364709995,1749214258263,-1358.0,0.00023584,2]
[364709996,1749214258273,-823.0,0.0002359,2]
[364709997,1749214258283,-400.0,0.00023591,2]
[364709998,1749214258292,-500.0,0.00023612,2]
[364709999,1749214258302,-428.0,0.00023612,2]
[364710000,1749214258311,-1358.0,0.00023612,2]
[364710001,1749214258321,-800.0,0.00023615,2]
[364710002,1749214258331,-500.0,0.00023639,2]
[364710003,1749214258340,-428.0,0.00023639,2]
[364710004,1749214258350,-1358.0,0.00023639,2]
[364710005,1749214258361,-800.0,0.0002364,2]
[364710006,1749214258370,-502.12936274,0.0002365,2]
[364710007,1749214258380,-1676.48981906,0.00023659,9]
[364710008,1749214258390,-185.77862573,0.00023666,2]
[364710009,1749214258400,-428.0,0.00023666,2]
[364710010,1749214258410,-1358.0,0.00023666,2]
[364710011,1749214258419,-879.25887938,0.00023686,2]
[364710012,1749214258429,-428.0,0.00023694,2]
[364710013,1749214258545,-1358.0,0.00023694,2]
[364710014,1749214258556,-10618.5740165,0.00023694,2]
[364710015,1749214258566,-2383.27191805,0.000237,2]
[364710016,1749214258576,-5000.0,0.0002371,2]
[364710017,1749214258587,-428.0,0.00023721,2]
[364710018,1749214258597,-1358.0,0.00023721,2]
[364710019,1749214258606,-428.0,0.00023749,2]
[364710020,1749214258616,-1358.0,0.00023749,2]
[364710021,1749214258626,-962.0,0.00023749,2]
[364710022,1749214258635,-2224.0,0.00023749,2]
[364710023,1749214258646,-709.0,0.00023749,2]
[364710024,1749214258655,-405.0,0.00023749,2]
[364710025,1749214258665,-500.0,0.00023773,2]
[364710026,1749214258675,-500.0,0.00023773,2]
[364710027,1749214258684,-500.0,0.00023773,2]
[364710028,1749214258694,-428.0,0.00023776,2]
[364710029,1749214258703,-1358.0,0.00023776,2]
[364710030,1749214258713,-151.0,0.0002378,7]
[364710031,1749214258722,-287.74291803,0.0002378,2]
[364710032,1749214258732,-1676.48981906,0.00023797,9]
[364710033,1749214258742,-11639.7581502,0.000238,3]
[364710034,1749214258751,-151.0,0.000238,7]
[364710035,1749214258761,-151.0,0.000238,7]
[364710036,1749214258771,-151.0,0.000238,7]
[364710037,1749214258780,-151.0,0.000238,7]
[364710038,1749214258789,-151.0,0.000238,7]
[364710039,1749214258799,-151.0,0.000238,7]
[364710040,1749214258808,-151.0,0.000238,7]
[364710041,1749214258817,-151.0,0.000238,7]
[364710042,1749214258826,-136605.39988076,0.000238,2]
[364710043,1749214258836,-151.0,0.000238,7]
[364710044,1749214258845,-959989.63266423,0.000238,3]
[364710045,1749214258855,-151.0,0.000238,7]
[364710046,1749214258864,-151.0,0.000238,7]
[364710047,1749214258874,-151.0,0.000238,7]
[364710048,1749214258883,-842.5625,0.000238,3]
[364710049,1749214258893,-842.5625,0.000238,7]
[364710050,1749214258903,-212.976918,0.000238,3]
[364710051,1749214258912,-212.976918,0.000238,7]
[364710052,1749214258922,-151.0,0.000238,7]
[364710053,1749214258932,-11849.89752062,0.000238,7]
[364710054,1749214258942,-151.0,0.000238,7]
[364710055,1749214258951,-229.52673067,0.000238,3]
[364710056,1749214258961,-155.158114,0.000238,7]
[364710057,1749214258970,-151.0,0.000238,7]
[364710058,1749214258979,-151.0,0.000238,7]
[364710059,1749214258992,-462143.08377431,0.000238,7]
[364710060,1749214259001,-315.04936747,0.000238,3]
[364710061,1749214259012,-151.0,0.000238,7]
[364710062,1749214259021,-151.0,0.000238,7]
[364710063,1749214259031,-166.897811,0.000238,7]
[364710064,1749214259040,-834.50537533,0.000238,3]
[364710065,1749214259050,-428.0,0.00023803,2]
[364710066,1749214259060,-1358.0,0.00023803,2]
[364710067,1749214259069,-428.0,0.00023831,2]
[364710068,1749214259079,-1358.0,0.00023831,2]
[364710069,1749214259090,-971.66,0.00023835,2]
[364710070,1749214259100,-440.0,0.00023835,2]
[364710071,1749214259110,-440.0,0.00023835,2]
[364710072,1749214259120,-457.32,0.00023835,2]
[364710073,1749214259129,-1008.18,0.00023835,2]
[364710074,1749214259139,-1619.82,0.00023835,2]
[364710075,1749214259148,-2671.63,0.00023835,2]
[364710076,1749214259157,-1751.18,0.00023835,2]
[364710077,1749214259167,-583.76,0.00023835,2]
[364710078,1749214259177,-700.1,0.00023835,2]
[364710079,1749214259187,-605.44,0.00023835,2]
[364710080,1749214259196,-2910.28,0.00023835,2]
[364710081,1749214259205,-2253.61,0.00023835,2]
[364710082,1749214259215,-561.53,0.00023835,2]
[364710083,1749214259224,-988.31,0.00023835,2]
[364710084,1749214259234,-1039.65,0.00023835,2]
[364710085,1749214259243,-5859.32,0.00023835,2]
[364710086,1749214259253,-657.96,0.00023835,2]
[364710087,1749214259262,-863.5,0.00023835,2]
[364710088,1749214259271,-440.0,0.00023835,2]
[364710089,1749214259283,-1062.11,0.00023835,2]
[364710090,1749214259292,-911.46,0.00023835,2]
[364710091,1749214259301,-966.81,0.00023835,2]
[364710092,1749214259310,-4387.44,0.00023835,2]
[364710093,1749214259320,-440.0,0.00023835,2]
[364710094,1749214259329,-440.0,0.00023835,2]
[364710095,1749214259339,-415.87127578,0.00023835,2]
[364710096,1749214259348,-1842.31,0.00023835,2]
[364710097,1749214259357,-428.0,0.00023858,2]
[364710098,1749214259367,-1358.0,0.00023858,2]
[364710099,1749214259376,-900.0,0.00023871,2]
[364710100,1749214259386,-428.0,0.00023886,2]
[364710101,1749214259395,-1358.0,0.00023886,2]
[364710102,1749214259405,-21231.08,0.000239,2]
[364710103,1749214259414,-26658.68236298,0.00023912,7]
[364710104,1749214259423,-428.0,0.00023913,2]
[364710105,1749214259433,-1358.0,0.00023913,2]
[364710106,1749214259444,-1676.48981906,0.00023934,10]
[364710107,1749214259454,-200.0,0.0002394,9]
[364710108,1749214259464,-428.0,0.0002394,2]
[364710109,1749214259474,-1358.0,0.0002394,2]
[364710110,1749214259483,-428.0,0.00023968,2]
[364710111,1749214259493,-1358.0,0.00023968,2]
[364710112,1749214259502,-433.57950224,0.00023995,2]
[364710113,1749214259511,-1375.39338231,0.00023995,2]
[364710114,1749214259521,-1000.0,0.00024,24]
[364710115,1749214259531,-500.0,0.00024,2]
[364710116,1749214259540,-500.0,0.00024,2]
[364710117,1749214259549,-45678.59442202,0.00024,2]
[364710118,1749214259558,-190.55941656,0.00024,21]
[364710119,1749214259567,-1683.37476794,0.00024,2]
[364710120,1749214259576,-10090.11981347,0.00024,2]
[364710121,1749214259586,-7054.45755147,0.00024,30]